[Event "21th IPCA World Individual Chp."]
[Site "followchess.com"]
[Date "2022.05.12"]
[Round "4"]
[White "Babanov, Aleksandr"]
[Black "Lipilin, Ilia"]
[Result "1-0"]
[WhiteElo "1929"]
[BlackElo "2198"]
[ECO "A07"]
[WhiteFed "RUS"]
[BlackFed "RUS"]
[FCGameId "-1585125882"]
[WhiteFideId "24117412"]
[BlackFideId "54113245"]
[TimeControl "5400+30"]

1. Nf3 {[%clk 1:30:14]} d5 {[%clk 1:30:46]} 2. g3 {[%clk 1:30:27]} Nf6 
{[%clk 1:31:05]} 3. Bg2 {[%clk 1:29:29]} c5 {[%clk 1:31:20]} 4. e3 
{[%clk 1:29:40]} Nc6 {[%clk 1:31:16]} 5. d4 {[%clk 1:29:34]} e6 {[%clk 1:29:54]} 
6. O-O {[%clk 1:27:44]} b6 {[%clk 1:30:04]} 7. Nbd2 {[%clk 1:22:59]} Be7 
{[%clk 1:28:14]} 8. b3 {[%clk 1:18:58]} cxd4 {[%clk 1:27:01]} 9. exd4 
{[%clk 1:18:41]} Ba6 {[%clk 1:27:16]} 10. Re1 {[%clk 1:18:27]} Rc8 
{[%clk 1:27:30]} 11. a3 {[%clk 1:16:10]} O-O {[%clk 1:26:27]} 12. Bb2 
{[%clk 1:16:11]} Rc7 {[%clk 1:22:27]} 13. Rc1 {[%clk 1:14:06]} Bd6 
{[%clk 1:22:26]} 14. Ne5 {[%clk 1:09:45]} Qe7 {[%clk 1:19:47]} 15. c4 
{[%clk 1:04:05]} Na5 16. cxd5 {[%clk 0:52:03]} Rxc1 {[%clk 0:57:13]} 17. Qxc1 
{[%clk 0:51:50]} Rc8 {[%clk 0:53:12]} 18. Nc6 {[%clk 0:46:13]} Qd7 
{[%clk 0:41:27]} 19. Qd1 {[%clk 0:37:45]} exd5 {[%clk 0:39:08]} 20. Nxa5 
{[%clk 0:36:49]} bxa5 {[%clk 0:39:34]} 21. Nf3 {[%clk 0:32:22]} h6 
{[%clk 0:38:17]} 22. Qd2 {[%clk 0:30:16]} Qb5 {[%clk 0:34:45]} 23. Qd1 
{[%clk 0:25:25]} Qd3 {[%clk 0:30:08]} 24. Bf1 {[%clk 0:20:29]} Qxd1 
{[%clk 0:30:21]} 25. Rxd1 {[%clk 0:20:51]} Bxf1 {[%clk 0:30:38]} 26. Kxf1 
{[%clk 0:21:01]} Rb8 {[%clk 0:30:43]} 27. Rd3 {[%clk 0:20:14]} a4 
{[%clk 0:30:56]} 28. b4 {[%clk 0:20:21]} a5 {[%clk 0:31:12]} 29. Ne5 
{[%clk 0:11:25]} axb4 {[%clk 0:31:15]} 30. Nc6 {[%clk 0:10:35]} bxa3 
{[%clk 0:30:49]} 31. Bxa3 {[%clk 0:10:27]} Rb1+ {[%clk 0:30:03]} 32. Ke2 
{[%clk 0:10:10]} Bxa3 {[%clk 0:29:04]} 33. Rxa3 {[%clk 0:10:26]} Rb6 
{[%clk 0:29:24]} 34. Ne5 {[%clk 0:09:21]} Rb4 {[%clk 0:23:59]} 35. Ke3 
{[%clk 0:07:19]} Ne4 {[%clk 0:24:00]} 36. Nc6 {[%clk 0:04:41]} Rb3+ 
{[%clk 0:21:38]} 37. Rxb3 {[%clk 0:05:08]} axb3 {[%clk 0:21:56]} 38. Kd3 
{[%clk 0:05:21]} Nxf2+ {[%clk 0:21:03]} 39. Kc3 {[%clk 0:05:28]} Ng4 
{[%clk 0:20:57]} 40. Ne7+ {[%clk 0:04:15]} Kf8 {[%clk 0:21:12]} 41. Nxd5 
{[%clk 0:04:32]} Nxh2 {[%clk 0:21:28]} 42. Ne3 {[%clk 0:04:21]} Nf3 
{[%clk 0:21:24]} 43. d5 {[%clk 0:04:14]} Nd4 {[%clk 0:20:45]} 44. g4 
{[%clk 0:04:08]} Ke7 {[%clk 0:19:21]} 45. Nc4 {[%clk 0:04:19]} Nb5+ 
{[%clk 0:13:18]} 46. Kxb3 {[%clk 0:04:19]} Nd6 {[%clk 0:13:42]} 47. Ne3 
{[%clk 0:04:06]} Kf6 {[%clk 0:13:55]} 48. Kc3 {[%clk 0:03:23]} Ke5 
{[%clk 0:14:15]} 49. Kd3 {[%clk 0:02:59]} g6 {[%clk 0:13:13]} 50. Kc3 
{[%clk 0:02:36]} Ke4 {[%clk 0:13:19]} 51. Kd2 {[%clk 0:02:39]} Kf3 
{[%clk 0:13:22]} 52. Kd3 {[%clk 0:02:50]} h5 {[%clk 0:13:41]} 53. gxh5 
{[%clk 0:02:58]} gxh5 {[%clk 0:14:05]} 54. Nc4 {[%clk 0:02:51]} Ne4 
{[%clk 0:09:51]} 55. Nd2+ {[%clk 0:02:14]} Kf4 {[%clk 0:08:42]} 56. Nxe4 
{[%clk 0:02:25]} Ke5 {[%clk 0:09:04]} 57. d6 {[%clk 0:01:58]} Ke6 
{[%clk 0:09:28]} 58. Kc4 {[%clk 0:01:31]} h4 {[%clk 0:09:38]} 59. Kc5 
{[%clk 0:01:49]} Kd7 {[%clk 0:09:59]} 60. Nf6+ {[%clk 0:01:43]} Kd8 
{[%clk 0:10:10]} 61. Kc6 {[%clk 0:01:05]} h3 {[%clk 0:10:23]} 62. Ng4 
{[%clk 0:01:10]} f5 {[%clk 0:10:46]} 63. Nh2 {[%clk 0:01:29]} f4 
{[%clk 0:11:05]} 64. Nf3 {[%clk 0:01:52]} Kc8 {[%clk 0:10:56]} 65. Kd5 
{[%clk 0:01:43]} Kd8 {[%clk 0:09:59]} 66. Ke6 {[%clk 0:01:54]} Ke8 
{[%clk 0:10:24]} 67. d7+ {[%clk 0:01:42]} Kd8 {[%clk 0:10:48]} 68. Ne5 
{[%clk 0:02:06]} h2 {[%clk 0:11:06]} 69. Kd6 {[%clk 0:02:21]} 1-0

[Event "21th IPCA World Individual Chp."]
[Site "followchess.com"]
[Date "2022.05.12"]
[Round "4"]
[White "Srimskov, Elishar"]
[Black "Shapiro, Benny"]
[Result "1/2-1/2"]
[WhiteElo "1992"]
[BlackElo "1884"]
[ECO "A04"]
[WhiteFed "ISR"]
[BlackFed "ISR"]
[FCGameId "216440171"]
[WhiteFideId "2807254"]
[BlackFideId "2801582"]
[TimeControl "5400+30"]

1. Nf3 {[%clk 1:30:29]} c5 {[%clk 1:29:55]} 2. b3 {[%clk 1:30:17]} Nc6 
{[%clk 1:29:58]} 3. Bb2 {[%clk 1:30:29]} d6 {[%clk 1:30:08]} 4. e3 
{[%clk 1:30:21]} e5 {[%clk 1:29:58]} 5. d3 {[%clk 1:25:55]} g6 {[%clk 1:27:40]} 
6. Nc3 {[%clk 1:22:24]} Nge7 {[%clk 1:27:26]} 7. d4 {[%clk 1:20:27]} exd4 
{[%clk 1:23:55]} 8. exd4 {[%clk 1:19:26]} Bg7 {[%clk 1:23:35]} 9. dxc5 
{[%clk 1:08:39]} Qa5 {[%clk 1:23:12]} 10. Qd2 {[%clk 1:08:35]} dxc5 
{[%clk 1:23:04]} 11. Na4 {[%clk 1:04:52]} Qxd2+ {[%clk 1:22:46]} 12. Nxd2 
{[%clk 1:03:59]} Nd4 {[%clk 1:22:09]} 13. O-O-O {[%clk 1:02:49]} O-O 
{[%clk 1:19:47]} 14. Nxc5 {[%clk 1:02:31]} Bf5 {[%clk 1:17:44]} 15. Nce4 
{[%clk 0:57:36]} Rfd8 {[%clk 1:14:59]} 16. f3 {[%clk 0:52:52]} h5 
{[%clk 1:10:52]} 17. Bd3 {[%clk 0:51:58]} Nd5 {[%clk 1:10:24]} 18. Rhe1 
{[%clk 0:44:44]} a5 19. a3 {[%clk 0:43:42]} Nf4 {[%clk 1:05:32]} 20. g3 
{[%clk 0:34:23]} Ng2 {[%clk 1:02:05]} 21. Rg1 {[%clk 0:33:46]} Ne3 
{[%clk 1:01:34]} 22. Rde1 {[%clk 0:33:59]} Bh6 {[%clk 0:59:58]} 23. Kb1 
{[%clk 0:33:13]} Ndxc2 {[%clk 0:55:09]} 24. Bxc2 {[%clk 0:27:08]} Nxc2 
{[%clk 0:54:39]} 25. Nf6+ {[%clk 0:26:40]} Kf8 {[%clk 0:51:49]} 1/2-1/2

[Event "21th IPCA World Individual Chp."]
[Site "followchess.com"]
[Date "2022.05.12"]
[Round "4"]
[White "Gerasimova, Svetlana"]
[Black "Mekus, Manuela"]
[Result "1-0"]
[WhiteElo "1906"]
[BlackElo "1644"]
[ECO "B07"]
[WhiteFed "RUS"]
[BlackFed "GER"]
[FCGameId "1250217848"]
[WhiteFideId "4145968"]
[BlackFideId "16202562"]
[TimeControl "5400+30"]

1. e4 {[%clk 1:30:55]} d6 {[%clk 1:30:37]} 2. d4 {[%clk 1:31:13]} g6 
{[%clk 1:30:28]} 3. Nc3 {[%clk 1:31:30]} Bg7 {[%clk 1:30:40]} 4. Be3 
{[%clk 1:31:44]} Nf6 {[%clk 1:30:52]} 5. f3 {[%clk 1:31:54]} Nbd7 
{[%clk 1:30:58]} 6. Qd2 {[%clk 1:31:39]} c5 {[%clk 1:31:06]} 7. Nge2 
{[%clk 1:31:34]} O-O {[%clk 1:29:47]} 8. O-O-O {[%clk 1:31:21]} b6 
{[%clk 1:29:44]} 9. g4 {[%clk 1:30:59]} Bb7 {[%clk 1:29:48]} 10. Bh6 
{[%clk 1:30:29]} cxd4 {[%clk 1:29:49]} 11. Nxd4 {[%clk 1:30:26]} Ne5 
{[%clk 1:30:00]} 12. h4 {[%clk 1:30:20]} Re8 13. h5 {[%clk 1:24:35]} Bh8 
{[%clk 1:10:55]} 14. hxg6 {[%clk 1:22:15]} fxg6 {[%clk 1:09:58]} 15. Bb5 
{[%clk 1:18:52]} e6 {[%clk 1:08:36]} 16. Bxe8 {[%clk 1:16:09]} Qxe8 
{[%clk 1:09:01]} 17. Ncb5 {[%clk 1:13:13]} Nxf3 {[%clk 1:07:32]} 18. Nxf3 
{[%clk 1:13:13]} Qxb5 {[%clk 1:07:59]} 19. Qxd6 {[%clk 1:12:58]} Re8 
{[%clk 1:06:39]} 20. Nd4 {[%clk 1:01:46]} Qc4 {[%clk 1:05:28]} 21. Kb1 
{[%clk 0:55:31]} Bxe4 {[%clk 1:05:09]} 22. Rhf1 {[%clk 0:54:16]} Bd5 23. Qa3 
{[%clk 0:45:47]} Qc5 {[%clk 0:57:59]} 24. Qa4 {[%clk 0:28:20]} Qe7 
{[%clk 0:50:46]} 25. g5 {[%clk 0:25:57]} Nd7 {[%clk 0:50:00]} 26. Nc6 
{[%clk 0:21:33]} Qc5 {[%clk 0:34:57]} 27. Nb4 {[%clk 0:17:28]} b5 
{[%clk 0:33:27]} 28. Qa5 {[%clk 0:15:50]} Qb6 {[%clk 0:13:27]} 29. Qxb6 
{[%clk 0:14:35]} Nxb6 {[%clk 0:13:42]} 30. Nxd5 {[%clk 0:14:53]} Nxd5 
{[%clk 0:13:52]} 31. Rd3 {[%clk 0:14:58]} a5 {[%clk 0:13:19]} 32. Rdf3 
{[%clk 0:14:56]} Bg7 {[%clk 0:12:54]} 33. Rf7 {[%clk 0:14:40]} Bxh6 
{[%clk 0:12:13]} 34. gxh6 {[%clk 0:15:05]} Ne7 {[%clk 0:12:02]} 35. Rg7+ 
{[%clk 0:15:10]} Kh8 {[%clk 0:12:28]} 36. Rxe7 {[%clk 0:15:32]} 1-0

[Event "21th IPCA World Individual Chp."]
[Site "followchess.com"]
[Date "2022.05.12"]
[Round "4"]
[White "Oliel, Yehonatan"]
[Black "Klein, Djimmy"]
[Result "1-0"]
[WhiteElo "1535"]
[BlackElo "1392"]
[ECO "C56"]
[WhiteFed "ISR"]
[BlackFed "FRA"]
[FCGameId "774566251"]
[WhiteFideId "2834928"]
[BlackFideId "20669445"]
[TimeControl "5400+30"]

1. e4 {[%clk 1:30:47]} e5 {[%clk 1:30:52]} 2. Nf3 {[%clk 1:30:54]} Nc6 
{[%clk 1:31:16]} 3. d4 {[%clk 1:30:52]} exd4 {[%clk 1:31:35]} 4. Bc4 
{[%clk 1:30:56]} Nf6 {[%clk 1:29:39]} 5. Ng5 {[%clk 1:24:37]} d5 
{[%clk 1:29:30]} 6. exd5 Na5 {[%clk 1:28:54]} 7. Qxd4 {[%clk 1:20:20]} Nxc4 
{[%clk 1:25:59]} 8. Qxc4 {[%clk 1:20:07]} Bd6 {[%clk 1:26:14]} 9. Nc3 
{[%clk 1:18:35]} a6 {[%clk 1:23:35]} 10. O-O {[%clk 1:15:12]} O-O 
{[%clk 1:21:59]} 11. Qh4 {[%clk 1:14:09]} h6 {[%clk 1:22:12]} 12. Nf3 
{[%clk 1:12:46]} Nh7 {[%clk 1:16:08]} 13. Qxd8 {[%clk 1:09:43]} Rxd8 
{[%clk 1:16:19]} 14. Ne4 {[%clk 1:09:42]} Bf5 {[%clk 1:15:54]} 15. Re1 
{[%clk 1:06:25]} Nf8 {[%clk 1:07:23]} 16. Nxd6 {[%clk 1:01:49]} Rxd6 
{[%clk 1:05:55]} 17. c4 {[%clk 0:57:10]} g5 {[%clk 1:03:19]} 18. b3 f6 
{[%clk 0:51:56]} 19. Ba3 {[%clk 0:50:49]} Rd7 {[%clk 0:49:54]} 20. Re3 
{[%clk 0:48:07]} Kf7 {[%clk 0:48:19]} 21. Rae1 {[%clk 0:46:10]} Bg6 
{[%clk 0:44:05]} 22. Nd4 {[%clk 0:41:42]} Kg8 {[%clk 0:40:51]} 23. h3 
{[%clk 0:40:18]} Rc8 {[%clk 0:37:23]} 24. Ne6 {[%clk 0:35:21]} Rf7 
{[%clk 0:33:01]} 25. Nxf8 {[%clk 0:34:44]} Rfxf8 {[%clk 0:33:12]} 26. Bxf8 
{[%clk 0:34:29]} Kxf8 {[%clk 0:33:40]} 27. Re7 {[%clk 0:32:29]} Re8 
{[%clk 0:31:55]} 28. Rxe8+ {[%clk 0:29:59]} Bxe8 {[%clk 0:32:19]} 29. c5 
{[%clk 0:29:04]} Bd7 {[%clk 0:28:55]} 30. d6 {[%clk 0:28:29]} cxd6 
{[%clk 0:27:44]} 31. cxd6 {[%clk 0:28:41]} Bc6 {[%clk 0:28:04]} 32. Re7 
{[%clk 0:28:41]} f5 {[%clk 0:22:25]} 33. Rh7 {[%clk 0:28:34]} Ke8 
{[%clk 0:21:28]} 34. Rxh6 {[%clk 0:28:24]} Kd7 {[%clk 0:19:42]} 35. g3 b5 
{[%clk 0:20:00]} 36. b4 {[%clk 0:27:08]} f4 {[%clk 0:18:02]} 37. gxf4 
{[%clk 0:24:30]} gxf4 {[%clk 0:18:13]} 38. Rf6 {[%clk 0:24:25]} f3 
{[%clk 0:18:36]} 39. h4 {[%clk 0:24:38]} Bd5 {[%clk 0:17:26]} 40. a3 
{[%clk 0:24:43]} Be6 {[%clk 0:15:06]} 41. Rxe6 {[%clk 0:23:35]} Kxe6 
{[%clk 0:14:54]} 42. d7 {[%clk 0:22:53]} Kxd7 {[%clk 0:15:21]} 43. Kf1 
{[%clk 0:23:10]} Ke6 {[%clk 0:15:40]} 44. Ke1 {[%clk 0:23:23]} Kf5 
{[%clk 0:16:08]} 45. Kd2 {[%clk 0:23:28]} Kg4 {[%clk 0:16:24]} 46. Ke3 
{[%clk 0:23:46]} Kxh4 {[%clk 0:16:28]} 47. Kxf3 {[%clk 0:24:03]} Kg5 
{[%clk 0:16:55]} 48. Ke4 {[%clk 0:24:09]} Kf6 {[%clk 0:17:19]} 49. Kd5 
{[%clk 0:23:58]} Kf5 {[%clk 0:15:28]} 50. Kc6 {[%clk 0:24:13]} Kf4 
{[%clk 0:15:56]} 51. Kb6 {[%clk 0:24:34]} Kf3 {[%clk 0:16:15]} 52. Kxa6 
{[%clk 0:24:55]} Kxf2 {[%clk 0:16:43]} 53. Kxb5 {[%clk 0:25:09]} Ke2 
{[%clk 0:16:48]} 54. a4 {[%clk 0:25:23]} Kd3 {[%clk 0:17:15]} 55. a5 
{[%clk 0:25:47]} Kd4 {[%clk 0:17:13]} 56. a6 {[%clk 0:26:07]} Kd5 
{[%clk 0:17:41]} 57. a7 {[%clk 0:26:31]} Kd6 {[%clk 0:17:50]} 58. a8=Q 
{[%clk 0:26:50]} Kd7 {[%clk 0:18:19]} 59. Qc6+ {[%clk 0:27:01]} Kd8 
{[%clk 0:18:39]} 60. Qb7 {[%clk 0:27:06]} Ke8 {[%clk 0:19:05]} 61. Qc7 
{[%clk 0:27:30]} Kf8 {[%clk 0:19:25]} 62. Qd7 {[%clk 0:27:51]} Kg8 
{[%clk 0:19:44]} 63. Qe7 {[%clk 0:28:11]} Kh8 {[%clk 0:20:09]} 64. Kc5 
{[%clk 0:28:25]} Kg8 {[%clk 0:20:35]} 65. Kd5 {[%clk 0:28:44]} Kh8 
{[%clk 0:20:58]} 66. Ke6 {[%clk 0:29:00]} Kg8 {[%clk 0:21:26]} 67. Kf6 
{[%clk 0:29:22]} Kh8 {[%clk 0:21:49]} 68. Qg7# {[%clk 0:29:41]} 1-0

[Event "21th IPCA World Individual Chp."]
[Site "followchess.com"]
[Date "2022.05.12"]
[Round "4"]
[White "Freiberg, Doron"]
[Black "Volodarsky, Michael"]
[Result "1-0"]
[WhiteElo "1244"]
[BlackElo "1400"]
[ECO "D02"]
[WhiteFed "ISR"]
[BlackFed "ISR"]
[FCGameId "-2116695392"]
[WhiteFideId "2841312"]
[BlackFideId "2814366"]
[TimeControl "5400+30"]

1. d4 {[%clk 1:09:15]} d5 {[%clk 1:30:30]} 2. Nf3 {[%clk 1:09:40]} Nf6 
{[%clk 1:30:37]} 3. g3 {[%clk 1:10:04]} e6 {[%clk 1:28:49]} 4. Bg2 
{[%clk 1:09:20]} c5 {[%clk 1:29:03]} 5. c4 {[%clk 1:09:31]} cxd4 
{[%clk 1:25:37]} 6. cxd5 {[%clk 1:08:57]} Nxd5 {[%clk 1:24:27]} 7. Nxd4 
{[%clk 1:07:17]} Bb4+ {[%clk 1:22:57]} 8. Bd2 {[%clk 1:06:56]} Bxd2+ 
{[%clk 1:19:06]} 9. Qxd2 {[%clk 1:05:45]} O-O {[%clk 1:17:51]} 10. O-O 
{[%clk 1:03:37]} Qf6 {[%clk 1:13:15]} 11. e4 {[%clk 1:01:19]} Nb6 
{[%clk 1:11:42]} 12. Nb5 Qe5 {[%clk 1:05:13]} 13. N1c3 Na6 {[%clk 0:58:22]} 14. 
Qe3 {[%clk 0:36:53]} Bd7 {[%clk 0:53:14]} 15. f4 Nc4 16. Qxa7 Rxa7 17. fxe5 Raa8 
18. Rfd1 Nxe5 19. Bf1 Bc6 20. Nd4 Be8 21. a4 Nc6 22. Ndb5 Ne5 23. Rd6 Rc8 24. 
Na3 Bc6 25. Rb1 Rfd8 26. Rxd8+ Rxd8 27. b4 Be8 28. Bb5 Bxb5 29. Naxb5 Rd2 30. h4 
Nd3 31. Nd6 Ndxb4 32. Nxb7 Rd3 33. Rd1 Rxd1+ 34. Nxd1 Kf8 35. Nc3 Ke7 36. Na5 
Kd6 37. Kf2 Kc5 38. Nb7+ Kd4 39. Nb1 Kxe4 40. Nd8 Nd3+ 41. Ke2 Ne5 42. Nd2+ Kd4 
43. Nf3+ Nxf3 44. Kxf3 Nc5 45. Nxf7 Nxa4 46. Ng5 g6 47. Nxe6+ Ke5 48. Nf8 Nc5 
49. Nxh7 Ne6 50. Kg4 Ng7 51. Kg5 Nh5 52. g4 Nf4 53. Nf8 Nh3+ 54. Kxg6 Kf4 55. 
Kh5 Ke5 56. g5 Nf4+ 57. Kg4 Nd5 58. Ng6+ Ke6 59. Nf4+ Nxf4 60. Kxf4 Kf7 61. Kf5 
Kg7 62. h5 Kg8 63. Kg6 Kh8 64. Kf7 Kh7 65. g6+ {[%clk 0:32:23]} 1-0

[Event "21th IPCA World Individual Chp."]
[Site "followchess.com"]
[Date "2022.05.10"]
[Round "3"]
[White "Yarmonov, Igor"]
[Black "Obodchuk, Andrei"]
[Result "0-1"]
[WhiteElo "2394"]
[BlackElo "2295"]
[ECO "A45"]
[WhiteFed "UKR"]
[BlackFed "RUS"]
[FCGameId "1977089804"]
[WhiteFideId "14114496"]
[BlackFideId "4114310"]
[TimeControl "5400+30"]

1. d4 {[%clk 1:30:56]} Nf6 {[%clk 1:30:50]} 2. Bf4 {[%clk 1:31:06]} d5 
{[%clk 1:31:06]} 3. c3 {[%clk 1:31:29]} e6 {[%clk 1:27:59]} 4. e3 
{[%clk 1:31:47]} c5 {[%clk 1:28:11]} 5. Nd2 {[%clk 1:31:56]} Nc6 
{[%clk 1:27:58]} 6. Bd3 {[%clk 1:32:12]} Be7 7. h3 {[%clk 1:32:21]} Bd6 
{[%clk 1:23:27]} 8. Bxd6 {[%clk 1:32:24]} Qxd6 {[%clk 1:23:55]} 9. Ngf3 
{[%clk 1:32:11]} O-O {[%clk 1:23:55]} 10. O-O {[%clk 1:32:35]} e5 
{[%clk 1:23:33]} 11. dxe5 {[%clk 1:31:46]} Nxe5 {[%clk 1:24:01]} 12. Nxe5 
{[%clk 1:31:42]} Qxe5 {[%clk 1:24:28]} 13. Re1 {[%clk 1:28:56]} Bf5 
{[%clk 1:17:41]} 14. Bxf5 {[%clk 1:28:43]} Qxf5 {[%clk 1:18:09]} 15. Qb1 
{[%clk 1:29:09]} Qxb1 {[%clk 1:16:52]} 16. Raxb1 {[%clk 1:29:36]} Rfd8 
{[%clk 1:16:22]} 17. f3 {[%clk 1:29:46]} Kf8 {[%clk 1:16:17]} 18. b4 
{[%clk 1:29:15]} d4 {[%clk 1:13:19]} 19. exd4 {[%clk 1:29:19]} cxd4 
{[%clk 1:13:46]} 20. c4 {[%clk 1:29:19]} a5 {[%clk 1:10:04]} 21. a4 
{[%clk 1:23:19]} Nd7 {[%clk 1:05:11]} 22. bxa5 {[%clk 1:18:26]} Rxa5 
{[%clk 1:05:32]} 23. Rxb7 {[%clk 1:18:20]} Rxa4 {[%clk 1:05:33]} 24. Rc7 
{[%clk 1:18:45]} Ra2 {[%clk 1:01:40]} 25. Ne4 {[%clk 1:16:42]} d3 
{[%clk 1:00:07]} 26. Rd1 {[%clk 1:06:08]} Ne5 {[%clk 0:54:48]} 27. f4 
{[%clk 0:56:09]} Ng6 {[%clk 0:54:55]} 28. g3 {[%clk 0:56:26]} Ne7 
{[%clk 0:48:32]} 29. Rd2 {[%clk 0:51:45]} Rxd2 {[%clk 0:47:24]} 30. Nxd2 
{[%clk 0:52:11]} Nf5 {[%clk 0:47:30]} 31. Kf2 {[%clk 0:52:20]} Re8 
{[%clk 0:47:35]} 32. Rc5 {[%clk 0:38:46]} Re2+ {[%clk 0:47:42]} 33. Kg1 
{[%clk 0:39:15]} Nxg3 {[%clk 0:46:43]} 34. Nf1 {[%clk 0:37:06]} d2 0-1

[Event "21th IPCA World Individual Chp."]
[Site "followchess.com"]
[Date "2022.05.10"]
[Round "3"]
[White "Campos, Eugenio"]
[Black "Mikheev, Stanislav"]
[Result "0-1"]
[WhiteElo "2247"]
[BlackElo "2333"]
[ECO "C02"]
[WhiteFed "ANG"]
[BlackFed "SRB"]
[FCGameId "1699418834"]
[WhiteFideId "10100156"]
[BlackFideId "4135920"]
[TimeControl "5400+30"]

1. e4 {[%clk 1:30:55]} e6 {[%clk 1:30:46]} 2. d4 {[%clk 1:31:15]} d5 
{[%clk 1:31:11]} 3. e5 {[%clk 1:31:38]} c5 {[%clk 1:31:29]} 4. c3 
{[%clk 1:32:03]} Nc6 {[%clk 1:31:53]} 5. Nf3 {[%clk 1:32:17]} Qb6 
{[%clk 1:32:14]} 6. a3 {[%clk 1:32:40]} Nh6 {[%clk 1:31:52]} 7. b4 
{[%clk 1:32:05]} cxd4 {[%clk 1:32:12]} 8. cxd4 {[%clk 1:32:24]} Nf5 
{[%clk 1:32:39]} 9. Bb2 {[%clk 1:32:26]} Bd7 {[%clk 1:32:56]} 10. g4 
{[%clk 1:30:42]} Nh6 {[%clk 1:25:41]} 11. h3 {[%clk 1:30:19]} Rc8 
{[%clk 1:23:05]} 12. Nc3 {[%clk 1:29:12]} Na5 {[%clk 1:13:43]} 13. Na4 
{[%clk 1:21:25]} Qc6 {[%clk 1:13:24]} 14. Rc1 {[%clk 1:18:36]} Nc4 
{[%clk 1:13:22]} 15. Bxc4 {[%clk 1:17:50]} dxc4 {[%clk 1:12:02]} 16. Nc3 
{[%clk 1:17:58]} Be7 {[%clk 1:08:34]} 17. O-O {[%clk 1:16:27]} O-O 
{[%clk 1:03:24]} 18. d5 {[%clk 1:16:15]} exd5 {[%clk 1:02:55]} 19. Nd4 
{[%clk 1:14:35]} Qg6 {[%clk 1:02:50]} 20. Nxd5 {[%clk 1:14:14]} Rfe8 
{[%clk 0:57:33]} 21. Rc3 {[%clk 1:13:10]} Qe4 {[%clk 0:52:00]} 22. Nxe7+ 
{[%clk 1:12:48]} Rxe7 {[%clk 0:52:29]} 23. Re1 {[%clk 1:13:17]} Qg6 
{[%clk 0:50:26]} 24. Qf3 {[%clk 1:13:04]} b5 {[%clk 0:42:41]} 25. Rce3 
{[%clk 1:11:33]} Bxg4 {[%clk 0:32:49]} 26. hxg4 {[%clk 1:09:59]} Nxg4 
{[%clk 0:33:13]} 27. Qf5 {[%clk 1:09:37]} Nxe3+ {[%clk 0:33:16]} 28. Qxg6 
{[%clk 1:10:02]} hxg6 {[%clk 0:33:35]} 29. Rxe3 {[%clk 1:10:26]} a6 
{[%clk 0:33:16]} 30. f4 {[%clk 1:10:25]} Rd7 {[%clk 0:31:52]} 31. Kf2 
{[%clk 1:10:28]} Rcd8 {[%clk 0:27:46]} 32. Re4 {[%clk 1:09:47]} f5 
{[%clk 0:27:22]} 33. exf6 {[%clk 1:09:45]} gxf6 {[%clk 0:27:49]} 34. Ke3 
{[%clk 1:10:00]} Kf7 {[%clk 0:26:32]} 35. f5 {[%clk 1:09:57]} gxf5 
{[%clk 0:21:08]} 36. Rh4 {[%clk 1:07:48]} Kg6 {[%clk 0:20:23]} 37. Kf3 
{[%clk 1:07:09]} Rh7 {[%clk 0:18:23]} 38. Rxh7 {[%clk 1:04:41]} Kxh7 
{[%clk 0:18:51]} 39. Kf4 {[%clk 1:05:02]} Kg6 {[%clk 0:18:45]} 40. Bc3 
{[%clk 1:05:10]} Rd5 {[%clk 0:17:39]} 41. Kf3 {[%clk 1:03:28]} Re5 
{[%clk 0:16:09]} 42. Ne2 {[%clk 1:02:46]} Re8 {[%clk 0:15:36]} 43. Nf4+ 
{[%clk 1:02:49]} Kf7 {[%clk 0:15:51]} 44. Nd5 {[%clk 1:01:20]} Rd8 
{[%clk 0:15:46]} 45. Nf4 {[%clk 1:01:32]} Rd1 {[%clk 0:15:58]} 46. Ke2 
{[%clk 1:01:20]} Rh1 {[%clk 0:16:10]} 47. Ke3 {[%clk 1:00:47]} Rh2 
{[%clk 0:15:16]} 48. Bd2 {[%clk 0:59:23]} Ke7 {[%clk 0:15:25]} 49. Nd5+ 
{[%clk 0:58:48]} Kd6 {[%clk 0:15:37]} 50. Nf4 {[%clk 0:57:39]} Kc6 
{[%clk 0:14:28]} 51. Bc3 {[%clk 0:56:22]} Ra2 {[%clk 0:14:32]} 52. Kd4 
{[%clk 0:55:56]} Rxa3 {[%clk 0:14:04]} 53. Nd5 {[%clk 0:56:19]} Kd6 
{[%clk 0:13:23]} 54. Nxf6 {[%clk 0:56:22]} f4 {[%clk 0:10:08]} 55. Ne4+ 
{[%clk 0:48:06]} Ke6 {[%clk 0:10:25]} 56. Nd2 {[%clk 0:47:11]} Kf5 
{[%clk 0:10:27]} 57. Nb1 {[%clk 0:45:39]} Ra2 {[%clk 0:09:27]} 58. Nd2 
{[%clk 0:45:24]} Rc2 {[%clk 0:09:19]} 59. Ne4 {[%clk 0:45:10]} Re2 
{[%clk 0:08:24]} 60. Nd6+ {[%clk 0:43:04]} Kg4 {[%clk 0:08:34]} 61. Kc5 
{[%clk 0:42:13]} f3 {[%clk 0:08:43]} 62. Bd4 {[%clk 0:42:28]} f2 
{[%clk 0:08:52]} 0-1

[Event "21th IPCA World Individual Chp."]
[Site "followchess.com"]
[Date "2022.05.10"]
[Round "3"]
[White "Zilberman, Yaacov"]
[Black "Gerasimova, Svetlana"]
[Result "1-0"]
[WhiteElo "2315"]
[BlackElo "1906"]
[ECO "A71"]
[WhiteFed "ISR"]
[BlackFed "RUS"]
[FCGameId "1142258131"]
[WhiteFideId "2801612"]
[BlackFideId "4145968"]
[TimeControl "5400+30"]

1. d4 {[%clk 1:25:48]} Nf6 {[%clk 1:30:54]} 2. c4 {[%clk 1:26:09]} c5 
{[%clk 1:31:06]} 3. d5 {[%clk 1:26:28]} e6 {[%clk 1:31:27]} 4. Nc3 
{[%clk 1:26:48]} exd5 {[%clk 1:31:44]} 5. cxd5 {[%clk 1:27:10]} d6 
{[%clk 1:32:07]} 6. Nf3 {[%clk 1:27:02]} g6 {[%clk 1:32:28]} 7. e4 
{[%clk 1:27:18]} Bg7 {[%clk 1:32:48]} 8. Bg5 {[%clk 1:27:22]} O-O 
{[%clk 1:32:04]} 9. Nd2 {[%clk 1:27:27]} b6 {[%clk 1:27:23]} 10. Be2 
{[%clk 1:24:34]} Na6 {[%clk 1:24:13]} 11. O-O {[%clk 1:23:27]} Nc7 
{[%clk 1:23:14]} 12. f4 {[%clk 1:21:49]} Qd7 {[%clk 1:18:12]} 13. a4 
{[%clk 1:18:21]} Ba6 {[%clk 1:15:03]} 14. Bxa6 {[%clk 1:16:31]} Nxa6 
{[%clk 1:15:30]} 15. Nc4 {[%clk 1:14:33]} Nb4 {[%clk 1:06:36]} 16. h3 
{[%clk 0:47:29]} Rab8 {[%clk 1:01:15]} 17. Qd2 {[%clk 0:40:55]} a6 
{[%clk 0:47:20]} 18. Rae1 {[%clk 0:33:53]} Rfe8 {[%clk 0:43:12]} 19. Kh2 
{[%clk 0:24:19]} b5 {[%clk 0:39:18]} 20. axb5 {[%clk 0:23:58]} axb5 
{[%clk 0:39:46]} 21. Nxd6 {[%clk 0:23:25]} Qxd6 {[%clk 0:38:05]} 22. e5 
{[%clk 0:23:40]} Qb6 {[%clk 0:35:52]} 23. exf6 {[%clk 0:23:27]} Rxe1 
{[%clk 0:35:59]} 24. Rxe1 {[%clk 0:22:49]} Bxf6 {[%clk 0:36:14]} 25. Ne4 
{[%clk 0:21:58]} Bxg5 {[%clk 0:34:22]} 26. fxg5 {[%clk 0:22:10]} Rd8 
{[%clk 0:33:04]} 27. Nf6+ {[%clk 0:22:05]} Kh8 {[%clk 0:28:47]} 28. Qc3 
{[%clk 0:21:08]} Qd6+ {[%clk 0:27:21]} 29. Kh1 {[%clk 0:20:38]} Na2 
{[%clk 0:27:32]} 30. Qf3 {[%clk 0:18:36]} Qf8 {[%clk 0:23:00]} 31. Re4 
{[%clk 0:14:44]} h5 {[%clk 0:20:24]} 32. Rh4 {[%clk 0:10:32]} Qg7 
{[%clk 0:18:44]} 33. Qe3 {[%clk 0:09:56]} Qf8 {[%clk 0:18:09]} 34. Re4 
{[%clk 0:10:01]} Nb4 {[%clk 0:17:39]} 35. Re7 {[%clk 0:09:23]} Nd3 
{[%clk 0:14:30]} 36. Nd7 {[%clk 0:08:38]} Nf2+ {[%clk 0:11:53]} 37. Kg1 
{[%clk 0:08:34]} Nd1 {[%clk 0:12:01]} 38. Qe1 {[%clk 0:08:36]} Nxb2 
{[%clk 0:11:07]} 39. Nxf8 1-0